bitfinex/quotes_SOLUSD_20230111
["timestamp","ask_amount","ask_price","bid_price","bid_amount"]
[1673480338336,45.54,16.476,16.449,63.58]
[1673480338548,45.54,16.476,16.45,25.59452]
[1673480338761,45.54,16.476,16.451,18.92]
[1673480339073,20.0,16.475,16.452,113.4879565]
[1673480339403,45.55,16.474,16.453,96.7811565]
[1673480339716,20.0,16.475,16.454,103.4543165]
[1673480339928,20.0,16.475,16.455,18.92]
[1673480340127,20.0,16.475,16.456,20.0]
[1673480340334,20.0,16.475,16.457,17.0]
[1673480340566,20.0,16.475,16.449,53.83851794]
[1673480340567,45.55,16.474,16.449,53.83851794]
[1673480340871,20.0,16.49,16.458,106.69607646]
[1673480341083,20.0,16.49,16.459,51.18146]
[1673480341286,20.0,16.49,16.46,5.59112]
[1673480341490,45.51,16.489,16.461,45.58]
[1673480341700,45.52,16.486,16.462,25.59044]
[1673480342127,45.52,16.486,16.463,71.77755852]
[1673480342340,45.52,16.486,16.464,20.0]
[1673480342533,45.52,16.486,16.465,18.92]
[1673480342753,45.52,16.486,16.466,20.0]
[1673480342975,20.0,16.485,16.467,18.92]
[1673480343178,20.0,16.485,16.468,20.0]
[1673480343380,20.0,16.485,16.469,1.92]
[1673480343592,20.0,16.485,16.469,71.77755852]
[1673480343924,20.0,16.485,16.47,72.85755852]
[1673480344357,17.96,16.484,16.471,17.0]
[1673480344567,20.0,16.482,16.471,17.0]
[1673480345388,20.0,16.482,16.464,49.59185127]
[1673480345716,20.0,16.482,16.455,20.0]
[1673480345717,20.0,16.482,16.457,48.69755852]
[1673480345938,17.0,16.481,16.459,49.59185127]
[1673480346337,65.53,16.482,16.46,68.69755852]
[1673480346562,17.0,16.481,16.46,68.69755852]
[1673480346757,20.0,16.482,16.461,48.69755852]
[1673480346961,20.0,16.482,16.462,25.59044]
[1673480347399,20.0,16.482,16.463,107.57607646]
[1673480347595,20.0,16.482,16.464,20.96]
[1673480347802,20.0,16.482,16.465,0.96]
[1673480348340,65.53,16.482,16.465,17.96]
[1673480348556,20.0,16.482,16.464,20.0]
[1673480348759,20.0,16.482,16.466,20.0]
[1673480348976,20.0,16.483,16.465,90.57607646]
[1673480349172,45.53,16.482,16.466,20.0]
[1673480349799,45.53,16.482,16.457,20.0]
[1673480349800,20.0,16.481,16.457,20.0]
[1673480350008,63.49,16.48,16.449,45.62]
[1673480350222,3.04662021,16.478,16.45,5.59452]
[1673480350433,3.04662021,16.476,16.45,5.59452]
[1673480350664,3.04662021,16.474,16.45,5.59452]
[1673480350856,3.04662021,16.472,16.45,5.59452]
[1673480351059,3.04662021,16.47,16.449,43.67089186]
[1673480351277,3.04662021,16.468,16.439,45.65]
[1673480351500,3.04662021,16.466,16.443,42.05185127]
[1673480351710,1296.53,16.467,16.443,42.05185127]
[1673480351711,46.53,16.465,16.443,42.05185127]
[1673480351904,1.77624177,16.463,16.443,42.05185127]
[1673480352114,1296.54,16.462,16.443,42.05185127]
[1673480352326,1.52722494,16.461,16.439,43.67089186]
[1673480352554,1250.0,16.46,16.439,85.72274313]
[1673480352749,20.0,16.458,16.439,85.72274313]
[1673480353091,1250.0,16.457,16.439,85.72274313]
[1673480353287,1.52293774,16.456,16.44,51.23792]
[1673480353501,1250.0,16.455,16.44,51.23792]
[1673480353696,20.0,16.462,16.441,5.59758]
[1673480353909,1250.0,16.461,16.441,5.59758]
[1673480354116,1250.0,16.461,16.442,17.96]
[1673480354330,1250.0,16.461,16.443,51.2269]
[1673480354538,1250.0,16.467,16.444,24.51656]
[1673480354755,20.0,16.466,16.445,51.22622]
[1673480354965,1250.0,16.465,16.446,18.92]
[1673480355179,1250.0,16.465,16.447,65.62]
[1673480355381,1250.0,16.465,16.448,18.92]
[1673480355590,1250.0,16.467,16.449,65.62]
[1673480355794,20.0,16.466,16.45,18.92]
[1673480356229,20.0,16.466,16.451,20.0]
[1673480356438,20.0,16.466,16.452,18.92]
[1673480356756,20.0,16.478,16.453,20.0]
[1673480356985,119.2623,16.476,16.454,17.0]
[1673480357208,45.55,16.473,16.452,0.96]
[1673480357412,45.56,16.469,16.427,227.63791456]
[1673480357600,20.0,16.468,16.434,20.0]
[1673480357814,45.57,16.467,16.438,41.50422519]
[1673480358125,17.96,16.466,16.436,38.58994547]
[1673480358358,20.0,16.464,16.436,38.58994547]
[1673480358556,64.5,16.463,16.436,38.58994547]
[1673480358775,20.0,16.462,16.434,45.66]
[1673480359092,64.5,16.461,16.433,41.50422519]
[1673480359303,175.7508,16.461,16.434,84.24994547]
[1673480359617,20.0,16.46,16.435,5.59963]
[1673480359830,63.55,16.459,16.436,45.65]
[1673480360235,0.96,16.458,16.434,80.09417066]
[1673480360545,20.0,16.456,16.428,45.68]
[1673480360757,62.6,16.455,16.429,85.69584066]
[1673480360960,64.52,16.455,16.429,85.69584066]
[1673480361175,64.52,16.455,16.429,47.10589519]
[1673480361381,116.5009,16.454,16.429,47.10589519]
[1673480361599,20.0,16.452,16.429,47.10589519]
[1673480361809,46.57,16.451,16.429,47.10589519]
[1673480362038,17.96,16.45,16.429,41.50422519]
[1673480362446,45.62,16.449,16.429,41.50422519]
[1673480362653,20.0,16.447,16.42,45.7]
[1673480362868,46.59,16.446,16.423,41.50422519]
[1673480363065,46.59,16.446,16.424,45.69]
[1673480363812,20.0,16.447,16.425,5.60303]
[1673480364021,20.0,16.447,16.426,45.68]
[1673480364226,20.0,16.447,16.426,131.64334311]
[1673480364443,17.0,16.446,16.426,131.64334311]
[1673480364662,20.0,16.447,16.427,20.0]
[1673480365400,0.96,16.446,16.427,20.0]
[1673480365588,20.0,16.447,16.427,20.0]
[1673480365797,46.59,16.446,16.426,44.22383496]
[1673480366639,20.0,16.445,16.426,44.22383496]
[1673480366853,0.96,16.444,16.426,44.22383496]
[1673480367059,17.96,16.444,16.423,45.69]
[1673480367273,0.96,16.443,16.418,45.7]
[1673480367479,232.9809,16.443,16.418,45.7]
[1673480367704,20.0,16.442,16.418,45.7]
[1673480367920,1250.96,16.441,16.418,45.7]
[1673480368535,20.0,16.44,16.418,87.43950815]
[1673480368741,1250.0,16.439,16.419,25.60508]
[1673480369076,1250.0,16.439,16.42,45.7]
[1673480369278,0.96,16.438,16.421,21.92]
[1673480369488,20.0,16.436,16.422,17.0]
[1673480369701,1250.0,16.435,16.423,20.96]
[1673480369908,1250.0,16.435,16.424,17.0]
[1673480370132,1213.0,16.419,16.412,45.72]
[1673480370338,20.0,16.434,16.412,45.72]
[1673480370339,1250.0,16.418,16.412,45.72]
[1673480370761,1.94067273,16.433,16.412,45.72]
[1673480370762,1250.0,16.432,16.412,45.72]
[1673480370973,2.06080885,16.431,16.412,45.72]
[1673480371181,2.06080885,16.431,16.413,46.36429829]
[1673480371378,1250.0,16.432,16.413,46.36429829]
[1673480371590,20.0,16.434,16.409,105.98258805]
[1673480371591,21.64387399,16.431,16.409,105.98258805]
[1673480371795,21.64387399,16.431,16.411,104.26844893]
[1673480371796,45.67,16.43,16.411,104.26844893]
[1673480372012,45.67,16.43,16.408,105.93235363]
[1673480372340,20.0,16.431,16.41,100.42272354]
[1673480372860,20.0,16.431,16.411,149.98844893]
[1673480373270,20.0,16.431,16.411,190.74561722]
[1673480373700,20.0,16.431,16.412,20.0]
[1673480373902,20.0,16.431,16.413,51.32713]
[1673480374124,20.0,16.432,16.414,38.92]
[1673480374323,117.8403,16.434,16.415,51.31645]
[1673480374528,117.8403,16.434,16.416,44.52611]
[1673480374860,20.0,16.438,16.417,51.31577]
[1673480375055,20.0,16.438,16.418,26.56542]
[1673480375260,20.0,16.438,16.419,45.7]
[1673480375474,20.0,16.438,16.42,20.0]
[1673480375696,20.0,16.438,16.418,60.75716829]
[1673480375916,20.0,16.438,16.418,20.0]
[1673480376103,45.65,16.437,16.415,20.0]
[1673480376441,20.0,16.435,16.414,45.72]
[1673480376646,63.62,16.434,16.412,45.72]
[1673480376860,20.0,16.433,16.411,104.26844893]
[1673480377049,1.92,16.432,16.411,104.26844893]
[1673480377266,0.96,16.432,16.411,104.26844893]
[1673480377591,20.0,16.431,16.411,104.26844893]
[1673480377801,20.0,16.431,16.411,144.37507042]
[1673480377993,20.0,16.431,16.412,45.72]
[1673480378414,20.0,16.431,16.413,18.92]
[1673480378635,20.0,16.431,16.414,45.72]
[1673480378846,20.0,16.431,16.415,18.92]
[1673480379398,0.96,16.43,16.415,0.96]
[1673480379566,65.67,16.429,16.411,104.26844893]
[1673480379776,0.96,16.428,16.411,104.26844893]
[1673480380002,20.96,16.428,16.411,104.26844893]
[1673480380219,20.96,16.428,16.412,20.0]
[1673480380536,20.0,16.428,16.412,20.0]
[1673480381462,20.0,16.428,16.413,0.96]
[1673480381671,20.0,16.426,16.407,171.65803681]
[1673480381907,3.04662021,16.424,16.407,167.80140293]
[1673480382100,3.04662021,16.422,16.407,167.80140293]
[1673480382316,23.04662021,16.42,16.407,167.80140293]
[1673480382535,3.04662021,16.418,16.407,167.80140293]
[1673480382717,3.04662021,16.416,16.407,167.80140293]
[1673480382929,1250.0,16.415,16.407,167.80140293]
[1673480383165,3.04662021,16.414,16.407,167.80140293]
[1673480383348,1250.0,16.413,16.404,103.9688068]
[1673480383559,1250.0,16.419,16.403,40.75716829]
[1673480383767,1250.0,16.419,16.404,45.74]
[1673480384208,21.5352299,16.418,16.403,40.75716829]
[1673480384428,1.71136843,16.416,16.403,40.75716829]
[1673480384736,1.71136843,16.414,16.403,40.10662149]
[1673480384927,1250.0,16.413,16.404,65.74]
[1673480385137,1250.0,16.413,16.404,106.49716829]
[1673480385365,192.75403099,16.412,16.352,108.34924421]
[1673480385556,192.75403099,16.412,16.336,126.33444433]
[1673480385557,153.37405266,16.393,16.349,104.91394804]
[1673480385887,52.33622,16.392,16.351,103.30511803]
[1673480386097,5.59622,16.39,16.347,104.71107816]
[1673480386286,1297.71,16.389,16.347,104.71107816]
[1673480386499,25.59622,16.388,16.347,104.71107816]
[1673480386820,1303.30622,16.387,16.347,104.71107816]
[1673480387036,5.59622,16.386,16.349,104.91394804]
[1673480387341,20.0,16.384,16.349,110.54302804]
[1673480387556,1250.0,16.383,16.349,110.54302804]
[1673480387888,21.21519718,16.382,16.349,5.62908]
[1673480388081,1301.40622,16.381,16.329,108.81176326]
[1673480388293,20.0,16.376,16.333,102.31749106]
[1673480388507,1298.13467335,16.375,16.335,101.08390012]
[1673480388719,1252.31467335,16.375,16.35,105.74]
[1673480388922,1252.31467335,16.375,16.351,26.38]
[1673480389138,20.0,16.374,16.351,26.38]
[1673480389345,20.0,16.372,16.351,26.38]
[1673480389566,1252.31467335,16.371,16.351,26.38]
[1673480389888,1253.27467335,16.371,16.352,20.0]
[1673480390100,45.84,16.37,16.351,20.0]
[1673480390411,20.0,16.368,16.349,20.0]
[1673480390728,2.31467335,16.367,16.347,20.0]
[1673480390933,20.0,16.368,16.348,38.69]
[1673480391146,20.0,16.372,16.349,20.0]
[1673480391358,65.81,16.379,16.351,20.0]
[1673480391570,5.59622,16.38,16.352,39.43]
[1673480391888,396.1,16.383,16.352,59.43]
[1673480392291,21.65131872,16.381,16.353,38.92]
[1673480392504,1.65765248,16.379,16.354,20.0]
[1673480392718,1251.65765248,16.379,16.355,18.92]
[1673480392930,1.73647708,16.377,16.355,18.92]
[1673480393135,1.73647708,16.375,16.356,20.0]
[1673480393342,1.73647708,16.372,16.354,20.0]
[1673480393543,1.82224879,16.37,16.354,20.0]
[1673480393758,1.82224879,16.368,16.354,20.0]
[1673480393978,1.82224879,16.368,16.353,20.0]
[1673480395338,21.82224879,16.368,16.353,20.0]
[1673480395776,1.82224879,16.366,16.353,20.0]
[1673480396171,1250.0,16.365,16.353,20.0]
[1673480396384,1.89190014,16.365,16.353,20.0]
[1673480397234,21.89190014,16.365,16.349,63.7]
[1673480397445,66.96,16.38,16.347,62.61]
[1673480397654,24.51622,16.379,16.341,42.63]
[1673480397864,51.41622,16.378,16.341,42.63]
[1673480398083,27.51622,16.377,16.341,42.63]
[1673480398297,20.0,16.375,16.341,42.63]
[1673480398511,70.34622,16.374,16.341,42.63]
[1673480398696,5.59622,16.373,16.341,42.63]
[1673480398909,64.75,16.372,16.341,42.63]
[1673480399132,20.0,16.371,16.342,37.0]
[1673480399343,0.96,16.37,16.343,39.09]
[1673480399544,17.96,16.37,16.343,37.17]
[1673480399758,0.96,16.37,16.341,37.83]
[1673480399962,51.43622,16.369,16.342,20.0]
[1673480400181,20.96,16.368,16.343,36.0]
[1673480400397,20.96,16.368,16.344,20.0]
[1673480400586,20.96,16.368,16.345,35.01]
[1673480400802,20.96,16.368,16.336,5.63356]
[1673480400803,1313.81,16.367,16.338,26.14033717]
[1673480401012,1313.81,16.367,16.31,21.3]
[1673480401013,3.04662021,16.363,16.31,21.3]
[1673480401335,78.4210115,16.337,16.311,5.6422]
[1673480401557,78.4210115,16.337,16.31,21.3]
[1673480401558,45.93,16.336,16.31,21.3]
[1673480401749,78.4210115,16.337,16.31,21.3]
[1673480401966,20.96,16.336,16.31,106.02]
[1673480402171,20.0,16.334,16.31,21.3]
[1673480402400,53.45622,16.333,16.29,21.36]
[1673480402597,5.59622,16.332,16.29,11.36]
[1673480402807,21.18,16.33,16.29,38.32947]
[1673480403023,54.59284021,16.329,16.3,21.02]
[1673480403231,54.59284021,16.329,16.3,42.02]
[1673480403232,18.92,16.328,16.3,42.02]
[1673480403440,66.00662021,16.327,16.3,42.02]
[1673480403658,0.96,16.326,16.3,21.0]
[1673480403874,3.04662021,16.325,16.3,105.69]
[1673480404184,3.04662021,16.327,16.3,111.336]
[1673480404403,5.59622,16.326,16.3,21.32]
[1673480404600,3.04662021,16.325,16.3,21.32]
[1673480404814,3.04662021,16.325,16.3,106.04]
[1673480405045,5.59622,16.326,16.3,106.04]
[1673480405243,45.95,16.33,16.301,20.0]
[1673480405562,45.95,16.33,16.294,138.40144465]
[1673480405563,21.18,16.32,16.294,138.40144465]
[1673480405753,21.18,16.32,16.264,115.524]
[1673480405754,55.58284021,16.319,16.264,115.524]
[1673480406078,21.18,16.31,16.271,20.0]
[1673480406293,55.61284021,16.309,16.27,41.9]
[1673480406608,5.59622,16.308,16.27,21.22]
[1673480406820,50.98662021,16.307,16.27,21.22]
[1673480407025,5.59622,16.306,16.27,21.22]
[1673480407243,70.98662021,16.305,16.27,21.22]
[1673480407436,5.59622,16.304,16.27,105.94]
[1673480407648,5.59622,16.304,16.271,25.65607]
[1673480407649,4.00662021,16.303,16.271,25.65607]
[1673480407844,5.59622,16.304,16.271,25.65607]
[1673480408059,20.0,16.305,16.271,25.65607]
[1673480408060,20.0,16.305,16.272,5.65572]
[1673480408486,53.20730795,16.304,16.27,21.22]
[1673480408712,5.59622,16.303,16.27,21.22]
[1673480408906,47.96061809,16.302,16.27,21.22]
[1673480409231,1.93061809,16.3,16.27,21.22]
[1673480409420,1.93061809,16.298,16.27,21.22]
[1673480409858,1.9622945,16.296,16.27,21.22]
[1673480410054,1.9622945,16.294,16.27,21.22]
[1673480410265,0.96,16.293,16.27,21.22]
[1673480410901,1.9622945,16.295,16.27,105.94]
[1673480411226,20.0,16.298,16.271,20.0]
[1673480411647,20.0,16.298,16.272,38.92]
[1673480411841,0.96,16.297,16.272,38.92]
[1673480412071,0.96,16.297,16.273,20.0]
[1673480412286,21.13,16.31,16.273,20.0]
[1673480412287,46.0,16.314,16.274,0.96]
[1673480412609,46.0,16.314,16.29,21.18]
[1673480412815,161.4116,16.319,16.291,21.92]
[1673480413007,105.84,16.33,16.291,21.92]
[1673480413008,20.0,16.324,16.292,20.0]
[1673480413218,20.0,16.331,16.293,37.96]
[1673480413434,20.0,16.331,16.3,105.9]
[1673480413643,20.0,16.331,16.301,37.96]
[1673480413859,65.95,16.331,16.302,0.96]
[1673480414068,20.0,16.33,16.302,0.96]
[1673480414280,20.0,16.33,16.303,6.60496]
[1673480414500,20.0,16.33,16.31,20.97]
[1673480414704,20.0,16.33,16.311,20.96]
[1673480414910,20.0,16.33,16.312,17.96]
[1673480415226,20.0,16.33,16.313,20.0]
[1673480415444,20.0,16.33,16.314,17.0]
[1673480415656,20.0,16.33,16.315,20.0]
[1673480416394,20.0,16.33,16.313,20.0]
[1673480416584,20.0,16.33,16.304,5.747]
[1673480416585,20.0,16.33,16.305,20.0]
[1673480416800,20.0,16.33,16.306,6.217]
[1673480417236,20.0,16.33,16.307,20.0]
[1673480417444,20.0,16.33,16.308,9.944]
[1673480417753,20.0,16.33,16.308,8.984]
[1673480418081,20.0,16.328,16.308,8.984]
[1673480418260,52.51622,16.327,16.308,8.984]
[1673480418477,5.59622,16.326,16.308,8.984]
[1673480418705,47.88,16.325,16.308,8.984]
[1673480418911,17.0,16.324,16.308,8.984]
[1673480419126,65.97,16.323,16.308,8.984]
[1673480419317,1.92,16.322,16.308,8.984]
[1673480419529,18.92,16.322,16.308,8.984]
[1673480419739,45.98,16.321,16.308,0.004]
[1673480420066,20.0,16.319,16.29,21.22]
[1673480420281,0.96,16.318,16.291,5.64912]
[1673480420910,65.98,16.319,16.291,25.64912]
[1673480421119,65.98,16.319,16.292,38.92]
[1673480421313,65.98,16.319,16.293,5.64843]
[1673480421523,65.98,16.319,16.294,38.92]
[1673480421732,20.0,16.319,16.294,38.92]
[1673480421952,20.0,16.319,16.295,20.0]
[1673480422257,65.98,16.319,16.296,38.92]
[1673480422477,20.0,16.319,16.296,38.92]
[1673480422903,65.98,16.319,16.296,38.92]
[1673480423098,18.92,16.318,16.296,20.0]
[1673480423310,45.99,16.317,16.296,20.0]
[1673480423530,20.0,16.33,16.297,5.64704]
[1673480423736,20.0,16.33,16.298,20.0]
[1673480423737,396.1,16.326,16.298,20.0]
[1673480423950,416.1,16.326,16.299,5.64635]
[1673480424271,416.1,16.326,16.3,20.0]
[1673480424492,396.1,16.326,16.301,5.64566]
[1673480424716,1646.1,16.326,16.31,21.18]
[1673480424900,1646.1,16.326,16.311,37.0]
[1673480425110,1646.1,16.326,16.312,0.96]
[1673480425452,1646.1,16.326,16.313,0.96]
[1673480425636,1250.0,16.33,16.314,0.96]
[1673480425851,1250.0,16.33,16.315,0.96]
[1673480426267,1250.0,16.33,16.316,0.96]
[1673480426480,1250.0,16.334,16.316,0.96]
[1673480426891,1250.0,16.334,16.317,0.96]
[1673480427122,1250.0,16.334,16.318,0.96]
[1673480427323,1250.0,16.334,16.319,0.96]
[1673480427531,1250.0,16.334,16.32,0.96]
[1673480427740,20.0,16.333,16.321,0.96]
[1673480427963,1250.0,16.332,16.322,0.96]
[1673480428189,1250.0,16.334,16.322,0.96]
[1673480428488,20.0,16.333,16.322,0.96]
[1673480428703,1250.0,16.332,16.322,0.96]
[1673480428906,396.1,16.335,16.323,0.96]
[1673480428907,20.0,16.333,16.323,0.96]
[1673480429116,20.0,16.333,16.318,37.0]
[1673480429117,1250.0,16.332,16.318,20.0]
[1673480429318,20.0,16.333,16.313,20.0]
[1673480429532,1250.0,16.332,16.314,38.61006122]
[1673480429730,1250.0,16.334,16.314,38.61006122]
[1673480430071,0.96,16.331,16.301,5.64566]
[1673480430254,1295.95,16.33,16.301,5.64566]
[1673480430901,20.0,16.329,16.301,5.64566]
[1673480431113,45.96,16.328,16.301,5.64566]
[1673480431435,1270.0,16.327,16.301,5.64566]
[1673480431640,45.96,16.326,16.301,5.64566]
[1673480431857,20.0,16.324,16.302,18.92]
[1673480432043,1250.0,16.325,16.302,18.92]
[1673480432044,1250.0,16.323,16.302,18.92]
[1673480432254,1250.0,16.325,16.302,24.56531]
[1673480432473,1250.0,16.326,16.302,24.56531]
[1673480432682,20.0,16.325,16.302,24.56531]
[1673480432889,1250.0,16.324,16.303,5.64496]
[1673480433114,1250.0,16.324,16.304,20.0]
[1673480433424,45.97,16.323,16.301,20.0]
[1673480433643,1250.0,16.322,16.301,20.0]
[1673480433956,20.0,16.32,16.3,21.16]
[1673480434146,1295.98,16.319,16.3,21.16]
[1673480434359,1295.98,16.319,16.291,62.37]
[1673480434584,1295.98,16.319,16.292,5.64878]
[1673480434894,20.0,16.318,16.292,5.64878]
[1673480435086,1295.99,16.317,16.292,40.91703921]
[1673480435297,1250.0,16.317,16.292,5.64878]
[1673480435721,20.0,16.316,16.292,5.64878]
[1673480435933,1250.0,16.315,16.292,5.64878]
[1673480436373,20.0,16.314,16.292,5.64878]
[1673480436566,1250.0,16.313,16.292,5.64878]
[1673480436782,20.0,16.314,16.292,5.64878]
[1673480437103,1250.0,16.313,16.3,20.97]
[1673480437299,1250.0,16.315,16.301,20.0]
[1673480437510,1250.0,16.315,16.293,20.0]
[1673480437738,20.0,16.314,16.293,60.91668921]
[1673480437926,271.8670013,16.349,16.293,60.91668921]
[1673480437927,396.1,16.32,16.294,88.01808]
[1673480438135,396.1,16.32,16.295,25.64774]
[1673480438352,396.1,16.32,16.296,5.64739]
[1673480438579,396.1,16.32,16.297,20.0]
[1673480438782,20.0,16.319,16.298,18.92]
[1673480439111,20.0,16.319,16.298,0.96]
[1673480439414,20.0,16.318,16.297,20.0]
[1673480439733,20.0,16.316,16.297,20.0]
[1673480440575,20.0,16.316,16.298,18.92]
[1673480440773,20.0,16.316,16.299,20.0]
[1673480440974,20.0,16.316,16.3,18.92]
[1673480441184,20.0,16.316,16.301,20.0]
[1673480441398,20.0,16.316,16.299,20.0]
[1673480441818,1250.0,16.315,16.299,20.0]
[1673480442046,47.60395076,16.314,16.291,20.0]
[1673480442354,47.60395076,16.314,16.286,35.26825921]
[1673480442355,2.10801802,16.312,16.286,35.26825921]
[1673480442574,1296.0,16.311,16.286,35.26825921]
[1673480442763,20.96,16.31,16.286,35.26825921]
[1673480443096,1296.97,16.309,16.28,21.02]
[1673480443285,2.5538901,16.308,16.28,21.02]
[1673480443491,46.02,16.307,16.28,21.02]
[1673480443824,24.45665592,16.307,16.281,5.65259]
[1673480444032,46.01,16.309,16.282,20.0]
[1673480444454,0.96,16.308,16.281,5.65259]
[1673480444662,46.02,16.307,16.283,5.6519]
[1673480444866,46.01,16.309,16.284,17.96]
[1673480445077,20.0,16.308,16.283,5.6519]
[1673480445289,46.02,16.307,16.28,105.59]
[1673480445495,20.0,16.308,16.28,84.56]
[1673480445705,20.0,16.316,16.281,5.65259]
[1673480445913,20.0,16.316,16.282,41.93]
[1673480446120,20.0,16.323,16.29,105.69]
[1673480446341,20.0,16.323,16.3,20.97]
[1673480446553,20.0,16.323,16.301,37.96]
[1673480446764,45.98,16.321,16.302,0.96]
[1673480447004,45.98,16.321,16.303,0.96]
[1673480447175,20.0,16.323,16.303,0.96]
[1673480447176,65.97,16.323,16.304,0.96]
[1673480447510,1250.0,16.322,16.305,0.96]
[1673480447935,45.98,16.321,16.306,0.96]
[1673480448122,45.97,16.322,16.301,20.0]
[1673480448445,45.97,16.322,16.293,20.0]
[1673480448656,45.97,16.322,16.292,20.0]
[1673480448657,20.0,16.321,16.292,20.0]
[1673480448867,20.0,16.321,16.29,21.35]
[1673480448868,51.57622,16.32,16.29,21.35]
[1673480449076,6.55622,16.319,16.284,21.94]
[1673480449288,20.0,16.317,16.282,20.0]
[1673480449500,47.91,16.316,16.282,20.0]
[1673480449706,37.0,16.315,16.284,20.0]
[1673480449899,47.92,16.314,16.284,20.0]
[1673480450111,46.96,16.314,16.284,20.0]
[1673480450326,46.0,16.314,16.285,97.91264588]
[1673480450548,20.0,16.315,16.286,51.72086]
[1673480450773,20.0,16.315,16.287,25.65051]
[1673480451072,20.0,16.315,16.289,20.0]
[1673480451289,20.0,16.315,16.29,44.56947]
[1673480451478,20.0,16.315,16.291,5.64912]
[1673480451692,20.0,16.315,16.292,38.92]
[1673480452129,20.0,16.316,16.292,38.92]
[1673480452340,65.99,16.316,16.292,38.92]
[1673480452550,65.99,16.316,16.292,20.0]
[1673480452740,65.99,16.316,16.291,5.64912]
[1673480452741,20.0,16.315,16.291,5.64912]
[1673480452956,46.0,16.314,16.283,115.4941]
[1673480453167,0.96,16.313,16.283,115.4941]
[1673480453375,46.0,16.312,16.283,115.4941]
[1673480453595,20.0,16.311,16.281,20.0]
[1673480453804,46.01,16.31,16.283,35.54264588]
[1673480454122,46.01,16.31,16.284,5.65155]
[1673480454332,20.0,16.311,16.285,17.0]
[1673480454539,20.0,16.311,16.284,5.65155]
[1673480454540,46.97,16.31,16.284,41.19419588]
[1673480454758,0.96,16.309,16.281,46.09]
[1673480454958,46.01,16.308,16.28,105.88]
[1673480455166,1.92,16.307,16.28,21.16]
[1673480455376,46.02,16.306,16.28,56.70264588]
[1673480455697,46.02,16.306,16.28,62.35558588]
[1673480456131,46.02,16.306,16.281,20.0]
[1673480456436,46.01,16.308,16.282,5.65224]
[1673480456654,20.0,16.309,16.284,20.0]
[1673480456860,46.01,16.308,16.285,20.0]
[1673480457382,46.01,16.308,16.286,17.96]
[1673480457574,20.0,16.307,16.28,105.9]
[1673480457793,46.02,16.306,16.274,46.11]
[1673480457999,1.5,16.305,16.276,163.48009341]
[1673480458220,20.0,16.307,16.276,163.48009341]
[1673480458221,46.02,16.304,16.276,163.48009341]
[1673480458419,20.0,16.305,16.276,163.48009341]